{"text_format":"3","workbook":"xlsx","n_sheets":8,"sheets":["Einleitung","Eingabe","Ergebnis","Einkommensabzug","Einkommensabzug Ziffer 2","Einkommensabzug Ziffer 3","Einkommensabzug Ziffer 4","Hilfstabelle"],"not_rendered":{"defined_names":2,"comments":1},"read":"whole","date_system":"1900"}

{"sheet":"Einleitung","index":0,"n_rows":60,"n_cols":8,"rows_kept":60,"merged":[[56,4,56,8],[57,4,57,8],[58,4,58,8],[59,4,59,8]]}
[null,null,"Bescheinigung des \"sozialrechtlichen Existenzminimums\" nach SGB XII - ab 01.01.2026"]
[null,null,"zum Schuldnerschutz i.R.d. § 850 d sowie ggf. § 850 f Abs. 1 Nr. 1, § 850 f Abs. 2 ZPO"]
[null,null,"und §§ 51 Abs. 2, 52 SGB I"]
[]
[null,"Aufgrund der Komplexität der Berechnung, insbesondere des Absetzungsbetrags bei Erwerbstätigkeit, ist die Tabelle auf"]
[null,"mehrere Blätter aufgeteilt. Alle relevanten Eingaben machen Sie auf \"Eingabe\" in die gelben Felder; die anderen lassen"]
[null,"sich nicht beschreiben/ändern. Auf den Blättern \"Einkommensabzug\" ersehen Sie die Berechnung der Absetzungsbeträge"]
[null,"gem §11b SGB II. Diese Rechenergebnisse werden, wie auch die anderen Daten in das Blatt \"Ergebnis\" übernommen. Vor allem"]
[null,"das Blatt \"Ergebnis\" aber auch bei Bedarf die Blätter \"Einkommensabzug\" drucken Sie bitte aus."]
[]
[]
[null,"Stand:","2026-01-01","vgl. BGBl. 2025 I Nr. 243"]
[]
[null,"Regelbedarfsstufen nach §§27a, 28, 28a, 145 SGB XII und Anlage zu §28 SGB XII "]
[null,"sowie Pauschalen bei dezentraler Warmwasserversorgung nach §30 Abs. 7 SGB XII  - ab 01.01.2023"]
[null,"RB-Stufe 1"]
[null,{"v":563,"d":"563.00 €"},"Für eine nicht-erwerbsfähige erwachsene Person, die nicht in Partnerschaft in einer Wohnung lebt (allein-"]
[null,null,"stehend oder alleinerziehend) oder deren Partner minderjährig ist; dazu zählen auch Personen, die mit anderen"]
[null,null,"Erwachsenen in einer Wohngemeinschaft wohnen und erwachsene behinderte Personen, die mit "]
[null,null,"Eltern/Geschwistern in einem Haushalt leben."]
[null,{"$f":"ROUND(0.023*B17,2)","v":{"v":12.95,"d":"12.95 €"}},"Warmwasserpauschale gem. §§ 30 Abs. 7 SGB XII für dezentrale WW-Erzeugung"]
[]
[null,"RB-Stufe 2","Für jeweils zwei erwachsene Leitungsberechtigte, die als Ehegatten, Lebenspartner oder in eheähnlicher oder"]
[null,{"v":506,"d":"506.00 €"},"lebenpartnerschaftlicher Gemeinschaft einen gemeinsamen Haushalt führen sowie ab 2020 für erwachsene"]
[null,null,"nicht-erwerbsfähige Menschen mit Behinderung in einer besonderen Wohnform nach dem BTHG (früher:"]
[null,null,"\"stationäre Einrichtung\")."]
[null,{"$f":"ROUND(0.023*B24,2)","v":{"v":11.64,"d":"11.64 €"}},"Warmwasserpauschale gem. §§ 30 Abs. 7 SGB XII für dezentrale WW-Erzeugung"]
[]
[null,"RB-Stufe 3*)","Erwachsene Person, die in einer stationären Einrihung unterbegracht ist und deren notwendiger"]
[null,{"v":451,"d":"451.00 €"},"Lebensunterhalt sich nach §27b SGB XII bestimmt."]
[null,null,"Da der BGH zu §850d ZPO ausschließlich nach SGB XII verfährt, auch für sonstige erwerbsfähige Angehörige"]
[null,null,"einer Bedarfsgemeinschaft, sofern sie da 18. Lebensjahr vollendet haben bzw. für erwachsene Leistungsbe-"]
[null,null,"rechtigte unter 25 Jahren, die ohne Zusicherung des Jobcenters ausgezogen sind."]
[null,{"$f":"ROUND(0.023*B30,2)","v":{"v":10.37,"d":"10.37 €"}},"Warmwasserpauschale gem. §§ 30 Abs. 7 SGB XII für dezentrale WW-Erzeugung"]
[]
[null,"RB-Stufe 4*)","Für leistungsberechtigte Jugendliche vom Beginn des 15. bis zur Vollendung des 18. Lebensjahres"]
[null,{"v":471,"d":"471.00 €"}]
[null,{"$f":"ROUND(0.014*B37,2)","v":{"v":6.59,"d":"6.59 €"}},"Warmwasserpauschale gem. § 30 Abs. 7 SGB XII für dezentrale WW-Erzeugung"]
[]
[null,"RB-Stufe 5*)","Für leistungsberechtigte Kinder von Beginn des siebten bis Vollendung des 14. Lebensjahres"]
[null,{"v":390,"d":"390.00 €"}]
[null,{"$f":"ROUND(0.012*B41,2)","v":{"v":4.68,"d":"4.68 €"}},"Warmwasserpauschale gem. § 30 Abs. 7 SGB XII für dezentrale WW-Erzeugung"]
[]
[null,"RB-Stufe 6*)","Für leistungsberechtigte Kinder bis zu Vollendung des sechsten Lebensjahres"]
[null,{"v":357,"d":"357.00 €"}]
[null,{"$f":"ROUND(0.008*B45,2)","v":{"v":2.86,"d":"2.86 €"}},"Warmwasserpauschale gem. § 30 Abs. 7 SGB XII für dezentrale WW-Erzeugung"]
[]
[null,"*) zzgl. Sofortzuschlag für jedes Kind bis 25 Jahre ab/seit",{"$nulls":3},"2022-07-01","in Höhe von:",{"v":25,"d":"25.00 €"}]
[]
[null,{"v":195,"d":"195.00 €"},"Schul-Ausstattungspauschale (für Schüler bis 25 Jahre, pro Jahr"]
[null,{"$f":"B50/12","v":{"v":16.25,"d":"16.25 €"}},"monatlich"]
[]
[null,{"v":3,"d":"3.00 €"},"Pauschale für Tagesausflüge (Kita-Kind und Schüler bis 25J.)"]
[]
[null,{"v":15,"d":"15.00 €"},"Teilhabepauschale für Soziales und Kultur, je Mitglied der BG unter 18J, monatlich"]
[]
[{"$nulls":3},"Bescheinigende Stelle, Name:"]
[{"$nulls":3},"Straße/Postfach:"]
[{"$nulls":3},"Ansprechpartner:"]
[{"$nulls":3},"PLZ, Ort:"]

{"sheet":"Eingabe","index":1,"n_rows":100,"n_cols":9,"rows_kept":100,"merged":[[6,2,6,3],[6,5,6,7],[32,2,32,4],[33,2,33,4],[34,2,34,4],[35,2,35,4],[36,2,36,4],[37,2,37,4],[38,1,40,1],[38,2,38,4],[39,2,39,4],[39,5,40,5],[39,6,40,6],[41,2,41,4],[42,2,42,4],[43,2,43,4],[44,2,44,4],[45,2,45,4],[46,2,46,4],[62,1,62,4],[63,1,63,4],[68,1,68,4],[69,1,69,4],[70,1,70,4],[73,1,73,4],[74,1,74,4],[75,1,75,4],[76,1,76,4],[77,1,77,4],[78,1,78,4],[79,1,79,4],[80,1,80,4],[81,1,81,4],[82,1,82,4],[83,1,83,4],[84,1,84,4],[90,1,90,4],[91,1,91,4],[92,1,92,4]]}
[null,{"$f":"Einleitung!C1","v":"Bescheinigung des \"sozialrechtlichen Existenzminimums\" nach SGB XII - ab 01.01.2026"}]
[null,{"$f":"Einleitung!C2","v":"zum Schuldnerschutz i.R.d. § 850 d sowie ggf. § 850 f Abs. 1 Nr. 1, § 850 f Abs. 2 ZPO"}]
[null,{"$f":"Einleitung!C3","v":"und §§ 51 Abs. 2, 52 SGB I"}]
[]
[null,"Erfassung der Haushaltsmitglieder, der Mehrbedarfe und der Kosten der Unterkunft"]
[]
[null,"für: ","Hier Namen eintragen",null," wohnhaft in:"]
[]
[]
[null,"1. Regelbedarfe (RB) für den Schuldner und die Mitglieder der Haushaltsgemeinschaft, denen er gesetzlich"]
[null,"zu Unterhalt verpflichtet ist"]
[null,"lfd.Ziffer","Vorname, Name, Geb.Datum","Alter (ab 15 und älter)","Alleinwohn-end / Allein-erziehend             RB Stufe 1","Volljährige mit Ehegatte / Partner           je RB Stufe 2","Sonstige Volljähr.im Haushalt       RB Stufe 3","Seit 1.7.22 Zuschl. §145 SGB XII","Betrag €"]
[null,1,{"$f":"IF(C7=\"\",\"\",IF(C7=\"Hier Namen des Antragstellers\",\"\",C7))","v":"Hier Namen eintragen"},null,{"$f":"IF(D13=\"\",\"\",IF(D14=0,Einleitung!B17,IF(D14=0,Einleitung!B17,IF(D14>0,IF(D14>=18,0,Einleitung!B17)))))","v":""},{"$f":"IF(D13=\"\",0,IF(D14=\"\",0,IF((D14<18),0,IF(D13>=18,IF(D14>=18,Einleitung!B24,0)))))","v":0},"--",null,{"$f":"SUM(E13:F13)","v":0}]
[null,2,null,null,"--",{"$f":"IF(D14=\"\",0,IF(D14=0,0,IF(D14>=18,Einleitung!B24,0)))","v":0},"--",null,{"$f":"SUM(F14:H14)","v":0}]
[null,3,null,null,"--","--",{"$f":"IF(D15=\"\",0,IF(D15=0,0,IF(D15<15,\"F!\",IF(D15<18,0,IF(D15>=18,Einleitung!B30,0)))))","v":0},{"$f":"IF(G15>0,Einleitung!H48,\"\")","v":""},{"$f":"SUM(E15:H15)","v":0}]
[null,4,null,null,"--","--",{"$f":"IF(D16=\"\",0,IF(D16=0,0,IF(D16<15,\"F!\",IF(D16<18,0,IF(D16>=18,Einleitung!B30,0)))))","v":0},{"$f":"IF(G16>0,Einleitung!H48,\"\")","v":""},{"$f":"SUM(E16:H16)","v":0}]
[]
[null,"lfd.Ziffer","Vorname, Name, Geb.Datum ","Alter","Kinder unter 6 J. je RB Stufe 6","Kinder 6 bis 13 J. je RB Stufe 5","Jugendl. 14 bis 17 J. je RB Stufe4",{"$f":"H12","v":"Seit 1.7.22 Zuschl. §145 SGB XII"},"Betrag €"]
[null,5,null,null,{"$f":"IF(D19=\"\",\"\",IF(D19=0,\"\",IF(D19<6,Einleitung!B45,\"\")))","v":""},{"$f":"IF(D19=\"\",\"\",IF(D19=0,\"\",IF(AND(D19<=13,D19>=6),Einleitung!B41,\"\")))","v":""},{"$f":"IF(D19=\"\",\"\",IF(D19=0,\"\",IF(D19>=14,Einleitung!B37,\"\")))","v":""},{"$f":"IF(SUM(E19:G19)<>0,Einleitung!H48,\"\")","v":""},{"$f":"SUM(E19:H19)","v":0}]
[null,6,null,null,{"$f":"IF(D20=\"\",\"\",IF(D20=0,\"\",IF(D20<6,Einleitung!B45,\"\")))","v":""},{"$f":"IF(D20=\"\",\"\",IF(D20=0,\"\",IF(AND(D20<=13,D20>=6),Einleitung!B41,\"\")))","v":""},{"$f":"IF(D20=\"\",\"\",IF(D20=0,\"\",IF(D20>=14,Einleitung!B37,\"\")))","v":""},{"$f":"IF(SUM(E20:G20)<>0,Einleitung!H48,\"\")","v":""},{"$f":"SUM(E20:H20)","v":0}]
[null,7,null,null,{"$f":"IF(D21=\"\",\"\",IF(D21=0,\"\",IF(D21<6,Einleitung!B45,\"\")))","v":""},{"$f":"IF(D21=\"\",\"\",IF(D21=0,\"\",IF(AND(D21<=13,D21>=6),Einleitung!B41,\"\")))","v":""},{"$f":"IF(D21=\"\",\"\",IF(D21=0,\"\",IF(D21>=14,Einleitung!B37,\"\")))","v":""},{"$f":"IF(SUM(E21:G21)<>0,Einleitung!H48,\"\")","v":""},{"$f":"SUM(E21:H21)","v":0}]
[null,8,null,null,{"$f":"IF(D22=\"\",\"\",IF(D22=0,\"\",IF(D22<6,Einleitung!B45,\"\")))","v":""},{"$f":"IF(D22=\"\",\"\",IF(D22=0,\"\",IF(AND(D22<=13,D22>=6),Einleitung!B41,\"\")))","v":""},{"$f":"IF(D22=\"\",\"\",IF(D22=0,\"\",IF(D22>=14,Einleitung!B37,\"\")))","v":""},{"$f":"IF(SUM(E22:G22)<>0,Einleitung!H48,\"\")","v":""},{"$f":"SUM(E22:H22)","v":0}]
[null,"2. Bedarfe für Bildung und Teilhabe nach § 34 SGB XII für das entspr. Mitglied der BG"]
[null,"für lfd. Ziffer...","Schul-Ausstattungspausch. für Schüler bis 25 J.i.H.v. (J/M)",null,null,{"$f":"IF(Einleitung!B50=\"\",\"\",Einleitung!B50)","v":{"v":195,"d":"195.00 €"}},{"$f":"IF(Einleitung!B51=\"\",\"\",Einleitung!B51)","v":{"v":16.25,"d":"16.25 €"}}]
[null,null,"Anzahl eingeben:",null,"x",{"$f":"IF(Einleitung!B51=\"\",\"\",Einleitung!B51)","v":{"v":16.25,"d":"16.25 €"}},null,null,{"$f":"IF(D25=\"\",0,D25*Einleitung!B51)","v":0}]
[null,null,"Pauschale für Tagesausflüge (Kita-Kind und Schüler bis 25J.)",null,null,"Anzahl:",null,{"$f":"IF(Einleitung!B53=\"\",\"\",Einleitung!B53)","v":{"v":3,"d":"3.00 €"}},{"$f":"IF(G26=\"\",0,G26*H26)","v":0}]
[null,null,"Mittagsessen in Tageseinr./Schule (für Schüler bis 25 J.)                                       => in tatsächlicher Höhe",{"$nulls":5},0]
[null,null,"notwendige außerschulische Lernförderung (für Schüler bis 25 J.)                       => in tatsächlicher Höhe",{"$nulls":5},0]
[null,null,"notwendige Fahrtkosten zur Schule (für Schüler bis 25 J.)                                      => in tatsächlicher Höhe",{"$nulls":5},0]
[null,null,"Teilhabepauschale f. Soziales u. Kultur je Mitglied der BG < 18 J.",null,null,"Anzahl:",null,{"$f":"IF(Einleitung!B55=\"\",\"\",Einleitung!B55)","v":{"v":15,"d":"15.00 €"}},{"$f":"IF(G30=\"\",0,G30*H30)","v":0}]
[]
[null,"3. Mehrbedarfe nach §§ 27a, 30, 42b SGB XII für das entsprechende Mitglied der BG"]
[null,"zu Ziffer","wegen",null,null,"% von RB…","Betrag €"]
[null,null,"Erreichens der Altersgrenze nach § 41 SGB XII (65 J. bzw. 65",null,null,{"$f":"IF(B34=7,$I$21,IF(B34=6,$I$20,IF(B34=5,$I$19,IF(B34=4,$I$16,IF(B34=3,$I$15,IF(B34=2,$I$14,IF(B34=1,$I$13,\"\")))))))","v":""},{"$f":"IF(B34=7,$I$21*0.17,IF(B34=6,$I$20*0.17,IF(B34=5,$I$19*0.17,IF(B34=4,$I$16*0.17,IF(B34=3,$I$15*0.17,IF(B34=2,$I$14*0.17,IF(B34=1,$I$13*0.17,\"\")))))))","v":""}]
[null,null,"65 plus X) oder Jüngere, die voll erwerbsgemindert nach",null,null,{"$f":"IF(B35=7,$I$21,IF(B35=6,$I$20,IF(B35=5,$I$19,IF(B35=4,$I$16,IF(B35=3,$I$15,IF(B35=2,$I$14,IF(B35=1,$I$13,\"\")))))))","v":""},{"$f":"IF(B35=7,$I$21*0.17,IF(B35=6,$I$20*0.17,IF(B35=5,$I$19*0.17,IF(B35=4,$I$16*0.17,IF(B35=3,$I$15*0.17,IF(B35=2,$I$14*0.17,IF(B35=1,$I$13*0.17,\"\")))))))","v":""}]
[null,null,"SGB VI sind u. über den Ausweis nach § 152 Abs. 5 SGB IX",null,null,{"$f":"IF(B36=7,$I$21,IF(B36=6,$I$20,IF(B36=5,$I$19,IF(B36=4,$I$16,IF(B36=3,$I$15,IF(B36=2,$I$14,IF(B36=1,$I$13,\"\")))))))","v":""},{"$f":"IF(B36=7,$I$21*0.17,IF(B36=6,$I$20*0.17,IF(B36=5,$I$19*0.17,IF(B36=4,$I$16*0.17,IF(B36=3,$I$15*0.17,IF(B36=2,$I$14*0.17,IF(B36=1,$I$13*0.17,\"\")))))))","v":""}]
[null,null,"mit Merkzeichen G verfügen,            =>17% des jeweiligen RB",null,null,{"$f":"IF(B37=7,$I$21,IF(B37=6,$I$20,IF(B37=5,$I$19,IF(B37=4,$I$16,IF(B37=3,$I$15,IF(B37=2,$I$14,IF(B37=1,$I$13,\"\")))))))","v":""},{"$f":"IF(B37=7,SUM(E21:G21)*0.17,IF(B37=6,SUM(E19:G19)*0.17,IF(B37=5,SUM(E18:G18)*0.17,IF(B37=4,SUM(G15:H15)*0.17,IF(B37=3,SUM(G14:H14)*0.17,IF(B37=2,SUM(F13:H13)*0.17,IF(B37=1,SUM(E12:F12)*0.17,\"\")))))))","v":""}]
[null,null,"Schwangersch. nach 12. Wo. b. Ende Entb.Mon. : 17% d. RB",null,null,{"$f":"IF(B38=7,I17,IF(B38=6,I16,IF(B38=5,I15,IF(B38=4,I12,IF(B38=3,I11,IF(B38=2,I9,IF(B38=1,I8,\"\")))))))","v":""},{"$f":"IF(B38=7,SUM(E22:G22)*0.17,IF(B38=6,SUM(E20:G20)*0.17,IF(B38=5,SUM(E19:G19)*0.17,IF(B38=4,SUM(G16:H16)*0.17,IF(B38=3,SUM(G15:H15)*0.17,IF(B38=2,SUM(F14:H14)*0.17,IF(B38=1,SUM(E13:F13)*0.17,\"\")))))))","v":""}]
[null,null,"Alleinerziehend mit 1 Kind unter 7 J. oder 2/3 Ki. unter 16 J.",null,null,"36% von RB",{"$f":"IF(AND(B39<>0,D41=\"\"),Einleitung!B17*0.36,\"\")","v":""}]
[null,null,"Oder (bei Kindern anderen Alters)",null,null,"mx. 60% d. RB Stufe 1",{"$f":"IF(B39<>0,IF(Einleitung!B17*0.12*D41>(Einleitung!B17*0.6),Einleitung!B17*0.6,Einleitung!B17*0.12*D41),\"\")","v":""}]
[null,null,"je minderj.Kind 12% d. RL  f.",null,"(Anz.) Kinder"]
[null,null,"Beh. Menschen ab 15 J. in Eingliederg./Ausbildg. 35% v. RB",null,null,{"$f":"IF(B42=7,I17,IF(B42=6,I16,IF(B42=5,I15,IF(B42=4,I12,IF(B42=3,I11,IF(B42=2,I9,IF(B42=1,I8,\"\")))))))","v":""},{"$f":"IF(B42=4,SUM(G16:H16)*0.35,IF(B42=3,SUM(G15:H15)*0.35,IF(B42=2,SUM(F14:H14)*0.35,IF(B42=1,SUM(E13:F13)*0.35,\"\"))))","v":""}]
[null,null,"Kostenaufwändige Ernährung für Kranke, Behinderte ...",null,null,"angemessen",0]
[null,null,"Anschaff./Ausleihe notw. Schulbücher/Arbeitshefte/Laptop",null,null,"angemessen",0]
[null,null,"Unabweisbarer Sonderbedarf §27a Abs. 4 SGB XII, z.B. für Umgangsrecht, f. Putz-/Pflegehilfe, f. spez. Hygienebedarf, f. notw. Zusatzanschaff. bei Krankheit",null,null,"angemessen",0]
[null,null,"(s.u.) Pauschale für dezentrale Warmwassererzeugung oder ein im Einzelfall abweichender Bedarf (gelbes Eingabefeld)",null,null,0,{"$f":"IF(F46>0,F46,IF(I13=0,0,IF(COUNTA(F57)>0,ROUND((E13*0.023),2)+ROUND((F13*0.023),2)+ROUND((F14*0.023),2)+ROUND((SUM(G15:G16)*0.023)+(SUM(H14:H16)*0.014)+(SUM(E19:E22)*0.008)+(SUM(F19:F22)*0.012)+(SUM(G19:G22)*0.014),2),0)))","v":0}]
[null,null,"Mehraufwendungen bei gemeinsch. Mittagsverpflegung in einer Werkstatt für beh. Menschen od. tagesstruk. Angebot",null,null,"gem.§42b II SGB XII",0]
[]
[{"$nulls":7},"Summe der Mehrbedarfe (max. Summe RB, ggf. plus Warmwasser,Schulbedarf und Mittagsverpfl.):",{"$f":"IF(SUM(G34:G44)>SUM(I13:I22),SUM(I13:I22),SUM(G34:G44))+G45+G46+G47","v":0}]
[]
[null,"4. Bedarfe für Unterkunft und Heizung nach § 35 SGB XII"]
[null,"Kosten der Unterkunft = Kaltmiete (bzw. Zinsen aus Immobilienfinanzierung ",{"$nulls":6},0]
[null,"plus Erhaltungsufwand)"]
[]
[null,"Nebenkosten incl. Heizung und ggf. Warmwasser (einschließlich absehbarer Nachforderungen)",{"$nulls":6},0]
[]
[null,"Warmwasser nicht in Nebenkosten enthalten (ja/x eintragen)"]
[null,"Wohngeld, soweit vorhanden:",null,0,null,null," minus Wohngeld:",null,{"$f":"D58*-1","v":0}]
[null,"Für die Berechung der Absetzbeträge nach §82 Abs. 3 SGB XII"]
[null,"(für jeden Erwerbstätigen in der Bedarfsgemeinschaft ist der Einkommensabzug separat zu berechnen)"]
[]
[{"$nulls":5},"Ziffer 1","Ziffer 2","Ziffer 3","Ziffer 4"]
[null,"·Bruttoerwerbseinkommen",{"$nulls":3},0,0,0,0]
[null,"·Unter 25 Jahren: Einkommen aus Ausbildung oder Freiwilligendienst",{"$nulls":3},0,0,0,0]
[]
[null,"5. Absetzbeträge bei Ausbildung/Freiwilligendienst oder Erwerbstätigkeit nach §82 Abs. 1, 3 SGB XII"]
[]
[]
[null,"·Absetzbetrag 30% (maximal die Hälfte der RB-Stufe 1)",{"$nulls":3},{"$f":"IF(F63=0,0,IF((F63*0.3)>Einleitung!$B$17/2,Einleitung!$B$17/2,(F63*0.3)))","v":0},{"$f":"IF(G64>0,0,IF(G63>0,IF((G63*0.3)>446/2,446/2,(G63*0.3)),0))","v":0},{"$f":"IF(H64>0,0,IF(H63>0,IF((H63*0.3)>446/2,446/2,(H63*0.3)),0))","v":0},{"$f":"IF(I64>0,0,IF(I63>0,IF((I63*0.3)>446/2,446/2,(I63*0.3)),0))","v":0}]
[null,"·bei Ausbildung/Freiwilligendienst anrechnungsfrei bis 520 €…",{"$nulls":3},{"$f":"IF(F64>0,IF(F64<520,F64,520),0)","v":0},{"$f":"IF(G64>0,IF(G64<520,G64,520),0)","v":0},0,0]
[null,"  …Übernahme in die Bescheinigung:",{"$nulls":3},{"$f":"IF(AND(F69=0,F70=0),0,IF(F70>0,F70,F69))","v":0},{"$f":"IF(AND(G69=0,G70=0),0,IF(G70>0,G70,G69))","v":0},0,0]
[]
[null,"6. Absetzbeträge vom Netto-Einkommen nach §82 Abs. 2 SGB XII i.V.m. VO zu §82"]
[null,"·Beiträge zur Kranken-/Pflegeversicherung für nicht gesetzlich Pflichtversicherte",{"$nulls":3},0,0,0,0]
[null,"·Altersvorsorgebeiträge, soweit von der gesetzl. Rentenversichungspflicht befreit",{"$nulls":3},0,0,0,0]
[null,"·Gesetzlich vorgeschriebene Versicherungsbeiträge (ab 1.7.23 auch Kfz-Haftpflicht)",{"$nulls":3},0,0,0,0]
[null,"·Beiträge für Haftpflicht-, Hausrat-, Unfall-, Sterbegeldversicherung u.a., soweit nach Grund und Höhe angemessen",{"$nulls":3},0,0,0,0]
[null,"·Mindestbeitrag für RIESTER- geförderte Altersvorsorge",{"$nulls":3},0,0,0,0]
[null,"·Arbeitsmittelpauschale (5,20€ je Erwerbstätigem im Haushalt)",{"$nulls":3},0,0,0,0]
[null,"·Fahrtkosten: i.d.R. Monatskarte ÖPNV, bei Notwendigkeit PKW 5,20€/Mon. je Entfernungskilometer, max. 40 Entfernungskilometer (max. 208€) monatlich.",{"$nulls":3},0,0,0,0]
[null,"·Kosten für notwendige Kinderbetreuung",{"$nulls":3},0,0,0,0]
[null,"·Beiträge für Berufsverband/Gewerkschaft/Sozialverband",{"$nulls":3},0,0,0,0]
[null,"·Mehraufwand für doppelte Haushaltsführung",{"$nulls":3},0,0,0,0]
[null,"·Sonstige, für die Einkommenserzielung notwendige Ausgaben:"]
[null,"(z.B. Kosten für Berufskleidung, Werkzeug, Fortbildung, Umzug,Wegeunfall, Bewerbungen)",{"$nulls":3},0,0,0,0]
[]
[null,"7. Absetzbetrag bei Bezug von zusätzl. Altersvorsorge/Rente aus langj. Vers. gem. §§82 Abs.4+5, 82a SGB XII"]
[null,"(für jeden Grundrentenempfänger in der Bedarfsgemeinschaft)"]
[]
[{"$nulls":5},"Ziffer 1","Ziffer 2","Ziffer 3","Ziffer 4"]
[null,"·Altersvorsorge, Grundrente aus mindestens 33 Jahren an Grundrentenzeiten",{"$nulls":3},0,0,0,0]
[null,"  Bis 100 € der zusätzl. Altersvorsorge/Betriebsrente/Grundrente zu 100%; ",{"$nulls":3},{"$f":"IF(AND(F91>0,F91<=100),F91,IF(F91>100,100,0))","v":0},{"$f":"IF(AND(G91>0,G91<=100),G91,IF(G91>100,100,0))","v":0},0,0]
[null,"  zzgl. 30% des übersteigenden Betrags, ",{"$nulls":3},{"$f":"(F91-F92)*0.3","v":0},{"$f":"IF((G91-G92)*0.3>(Einleitung!$B$17*0.5),Einleitung!$B$17*0.5,(G91-G92)*0.3)","v":0},{"$f":"IF((H91-H92)*0.3>(Einleitung!$B$17*0.5),Einleitung!$B$17*0.5,(H91-H92)*0.3)","v":0},{"$f":"IF((I91-I92)*0.3>(Einleitung!$B$17*0.5),Einleitung!$B$17*0.5,(I91-I92)*0.3)","v":0}]
[null,"  zusammen maximal jedoch  50% des Regelbedarfs Stufe I",{"$nulls":3},{"$f":"IF((F92+F93)>Einleitung!$B$17*0.5,Einleitung!$B$17*0.5,F92+F93)","v":0},{"$f":"IF((G92+G93)>Einleitung!$B$17*0.5,Einleitung!$B$17*0.5,G92+G93)","v":0},{"$f":"IF((H92+H93)>Einleitung!$B$17*0.5,Einleitung!$B$17*0.5,H92+H93)","v":0},{"$f":"IF((I92+I93)>Einleitung!$B$17*0.5,Einleitung!$B$17*0.5,I92+I93)","v":0}]
[]
[null,"8. Unterhaltsleistung an gesetzl. U-Berechtigte außerh. des Schuldnerhaushalts",{"$nulls":6},0]
[null,"(in tatsächlich erbrachter Höhe entsprechend Unterhaltstitel)"]
[]
[null,"© Stefan Freeman, Malte Poppe und Prof. Dr. Dieter Zimmermann (EH Darmstadt) - Zur Nutzung im nichtgewerblichen Bereich freigegeben!"]
[{"$nulls":8},"2026_v20251216"]

{"sheet":"Ergebnis","index":2,"n_rows":96,"n_cols":9,"rows_kept":96,"merged":[[1,1,4,2],[1,3,1,8],[2,3,2,8],[3,3,3,8],[4,3,4,8],[9,2,9,3],[9,5,9,8],[35,2,35,4],[36,2,36,4],[37,2,37,4],[38,2,38,4],[39,2,39,4],[40,2,40,4],[41,2,41,4],[42,1,43,1],[42,2,42,4],[42,5,43,5],[42,6,43,6],[44,2,44,4],[45,2,45,4],[46,2,46,4],[47,2,47,4],[48,2,48,4],[49,2,49,4],[60,1,60,2],[61,1,62,2],[61,3,62,3],[61,4,62,4],[61,5,62,5],[61,6,62,6],[67,1,67,5],[68,1,68,5],[69,1,69,5],[70,1,70,5],[71,1,71,5],[72,1,72,5],[73,1,73,5],[74,1,74,5],[75,1,75,5],[76,1,76,5],[77,1,77,5],[77,6,78,6],[78,1,78,5],[88,1,89,8],[93,5,93,8]]}
[]
[null,"(Raum für Logo)",null,{"$f":"IF(Einleitung!E57=\"\",\"\",Einleitung!E57)","v":""}]
[{"$nulls":3},{"$f":"IF(Einleitung!E58=\"\",\"\",Einleitung!E58)","v":""}]
[{"$nulls":3},{"$f":"IF(Einleitung!E59=\"\",\"\",Einleitung!E59)","v":""}]
[{"$nulls":3},{"$f":"IF(Einleitung!E60=\"\",\"\",Einleitung!E60)","v":""}]
[null,null,{"$f":"Einleitung!C1","v":"Bescheinigung des \"sozialrechtlichen Existenzminimums\" nach SGB XII - ab 01.01.2026"}]
[null,null,{"$f":"Einleitung!C2","v":"zum Schuldnerschutz i.R.d. § 850 d sowie ggf. § 850 f Abs. 1 Nr. 1, § 850 f Abs. 2 ZPO"}]
[null,null,{"$f":"Einleitung!C3","v":"und §§ 51 Abs. 2, 52 SGB I"}]
[]
[null,"für: ",{"$f":"IF(Eingabe!C7=\"\",\"\",Eingabe!C7)","v":"Hier Namen eintragen"},null," wohnhaft in:",{"$f":"IF(Eingabe!F7=\"\",\"\",Eingabe!F7)","v":""}]
[]
[]
[null,{"$f":"Eingabe!B10","v":"1. Regelbedarfe (RB) für den Schuldner und die Mitglieder der Haushaltsgemeinschaft, denen er gesetzlich"}]
[null,"lfd.Ziffer","Vorname, Name, Geb.Datum","Alter",{"$f":"Eingabe!E12","v":"Alleinwohn-end / Allein-erziehend             RB Stufe 1"},{"$f":"Eingabe!F12","v":"Volljährige mit Ehegatte / Partner           je RB Stufe 2"},{"$f":"Eingabe!G12","v":"Sonstige Volljähr.im Haushalt       RB Stufe 3"},{"$f":"Eingabe!H12","v":"Seit 1.7.22 Zuschl. §145 SGB XII"},"Betrag €"]
[null,1,{"$f":"IF(Eingabe!C7=\"\",\"\",Eingabe!C7)","v":"Hier Namen eintragen"},{"$f":"IF(Eingabe!D13=\"\",\"\",Eingabe!D13)","v":""},{"$f":"Eingabe!E13","v":""},{"$f":"Eingabe!F13","v":{"v":0,"d":"0 €"}},{"$f":"Eingabe!G13","v":"--"},null,{"$f":"Eingabe!I13","v":0}]
[null,2,{"$f":"IF(Eingabe!C14=\"\",\"\",Eingabe!C14)","v":""},{"$f":"IF(Eingabe!D14=\"\",\"\",Eingabe!D14)","v":""},"--",{"$f":"Eingabe!F14","v":{"v":0,"d":"0 €"}},{"$f":"Eingabe!G14","v":"--"},null,{"$f":"Eingabe!I14","v":0}]
[null,3,{"$f":"IF(Eingabe!C15=\"\",\"\",Eingabe!C15)","v":""},{"$f":"IF(Eingabe!D15=\"\",\"\",Eingabe!D15)","v":""},"--","--",{"$f":"Eingabe!G15","v":{"v":0,"d":"0 €"}},{"$f":"Eingabe!H15","v":""},{"$f":"Eingabe!I15","v":0}]
[null,4,{"$f":"IF(Eingabe!C16=\"\",\"\",Eingabe!C16)","v":""},{"$f":"IF(Eingabe!D16=\"\",\"\",Eingabe!D16)","v":""},"--","--",{"$f":"Eingabe!G16","v":{"v":0,"d":"0 €"}},{"$f":"Eingabe!H16","v":""},{"$f":"Eingabe!I16","v":0}]
[]
[null,"lfd.Ziffer","Vorname, Name, Geb.Datum ","Alter",{"$f":"Eingabe!E18","v":"Kinder unter 6 J. je RB Stufe 6"},{"$f":"Eingabe!F18","v":"Kinder 6 bis 13 J. je RB Stufe 5"},{"$f":"Eingabe!G18","v":"Jugendl. 14 bis 17 J. je RB Stufe4"},{"$f":"Eingabe!H18","v":"Seit 1.7.22 Zuschl. §145 SGB XII"},"Betrag €"]
[null,5,{"$f":"IF(Eingabe!C19=\"\",\"\",Eingabe!C19)","v":""},{"$f":"IF(Eingabe!D19=\"\",\"\",Eingabe!D19)","v":""},{"$f":"Eingabe!E19","v":""},{"$f":"Eingabe!F19","v":""},{"$f":"Eingabe!G19","v":""},{"$f":"Eingabe!H19","v":""},{"$f":"Eingabe!I19","v":0}]
[null,6,{"$f":"IF(Eingabe!C20=\"\",\"\",Eingabe!C20)","v":""},{"$f":"IF(Eingabe!D20=\"\",\"\",Eingabe!D20)","v":""},{"$f":"Eingabe!E20","v":""},{"$f":"Eingabe!F20","v":""},{"$f":"Eingabe!G20","v":""},{"$f":"Eingabe!H20","v":""},{"$f":"Eingabe!I20","v":0}]
[null,7,{"$f":"IF(Eingabe!C21=\"\",\"\",Eingabe!C21)","v":""},{"$f":"IF(Eingabe!D21=\"\",\"\",Eingabe!D21)","v":""},{"$f":"Eingabe!E21","v":""},{"$f":"Eingabe!F21","v":""},{"$f":"Eingabe!G21","v":""},{"$f":"Eingabe!H21","v":""},{"$f":"Eingabe!I21","v":0}]
[null,8,{"$f":"IF(Eingabe!C22=\"\",\"\",Eingabe!C22)","v":""},{"$f":"IF(Eingabe!D22=\"\",\"\",Eingabe!D22)","v":""},{"$f":"Eingabe!E22","v":""},{"$f":"Eingabe!F22","v":""},{"$f":"Eingabe!G22","v":""},{"$f":"Eingabe!H22","v":""},{"$f":"Eingabe!I22","v":0}]
[]
[null,{"$f":"Eingabe!B23","v":"2. Bedarfe für Bildung und Teilhabe nach § 34 SGB XII für das entspr. Mitglied der BG"}]
[null,"für lfd. Ziffer...","Schul-Ausstattungspausch. für Schüler bis 25 J.i.H.v. (J/M)",null,null,{"$f":"Eingabe!F24","v":{"v":195,"d":"195.00 €"}},{"$f":"Eingabe!G24","v":{"v":16.25,"d":"16.25 €"}},null,"Betrag €"]
[null,{"$f":"IF(Eingabe!B25=\"\",\"\",Eingabe!B25)","v":""},"Anzahl eingeben:",{"$f":"IF(Eingabe!D25=0,\"\",Eingabe!D25)","v":""},"x",{"$f":"Eingabe!F25","v":{"v":16.25,"d":"16.25 €"}},null,null,{"$f":"Eingabe!I25","v":0}]
[null,{"$f":"IF(Eingabe!B26=\"\",\"\",Eingabe!B26)","v":""},{"$f":"Eingabe!C26","v":"Pauschale für Tagesausflüge (Kita-Kind und Schüler bis 25J.)"},null,null,{"$f":"Eingabe!F26","v":"Anzahl:"},{"$f":"IF(Eingabe!G26=0,\"\",Eingabe!G26)","v":""},{"$f":"Eingabe!H26","v":{"v":3,"d":"3.00 €"}},{"$f":"Eingabe!I26","v":0}]
[null,{"$f":"IF(Eingabe!B27=\"\",\"\",Eingabe!B27)","v":""},{"$f":"Eingabe!C27","v":"Mittagsessen in Tageseinr./Schule (für Schüler bis 25 J.)                                       => in tatsächlicher Höhe"},{"$nulls":5},{"$f":"Eingabe!I27","v":0}]
[null,{"$f":"IF(Eingabe!B28=\"\",\"\",Eingabe!B28)","v":""},{"$f":"Eingabe!C28","v":"notwendige außerschulische Lernförderung (für Schüler bis 25 J.)                       => in tatsächlicher Höhe"},{"$nulls":5},{"$f":"Eingabe!I28","v":0}]
[null,{"$f":"IF(Eingabe!B29=\"\",\"\",Eingabe!B29)","v":""},{"$f":"Eingabe!C29","v":"notwendige Fahrtkosten zur Schule (für Schüler bis 25 J.)                                      => in tatsächlicher Höhe"},{"$nulls":5},{"$f":"Eingabe!I29","v":0}]
[null,{"$f":"IF(Eingabe!B30=\"\",\"\",Eingabe!B30)","v":""},{"$f":"Eingabe!C30","v":"Teilhabepauschale f. Soziales u. Kultur je Mitglied der BG < 18 J."},null,null,{"$f":"Eingabe!F30","v":"Anzahl:"},{"$f":"IF(Eingabe!G30=0,\"\",Eingabe!G30)","v":""},{"$f":"Eingabe!H30","v":{"v":15,"d":"15.00 €"}},{"$f":"Eingabe!I30","v":0}]
[]
[null,{"$f":"Eingabe!B32","v":"3. Mehrbedarfe nach §§ 27a, 30, 42b SGB XII für das entsprechende Mitglied der BG"}]
[null,"zu Ziffer","wegen",null,null,"% von RB","Betrag EUR"]
[null,{"$f":"IF(Eingabe!B34=0,\"\",Eingabe!B34)","v":""},{"$f":"Eingabe!C34","v":"Erreichens der Altersgrenze nach § 41 SGB XII (65 J. bzw. 65"},null,null,{"$f":"Eingabe!F34","v":""},{"$f":"Eingabe!G34","v":""}]
[null,{"$f":"IF(Eingabe!B35=0,\"\",Eingabe!B35)","v":""},{"$f":"Eingabe!C35","v":"65 plus X) oder Jüngere, die voll erwerbsgemindert nach"},null,null,{"$f":"Eingabe!F35","v":""},{"$f":"Eingabe!G35","v":""}]
[null,{"$f":"IF(Eingabe!B36=0,\"\",Eingabe!B36)","v":""},{"$f":"Eingabe!C36","v":"SGB VI sind u. über den Ausweis nach § 152 Abs. 5 SGB IX"},null,null,{"$f":"Eingabe!F36","v":""},{"$f":"Eingabe!G36","v":""}]
[null,{"$f":"IF(Eingabe!B37=0,\"\",Eingabe!B37)","v":""},{"$f":"Eingabe!C37","v":"mit Merkzeichen G verfügen,            =>17% des jeweiligen RB"},null,null,{"$f":"Eingabe!F37","v":""},{"$f":"Eingabe!G37","v":""}]
[null,{"$f":"IF(Eingabe!B38=\"\",\"\",Eingabe!B38)","v":""},"Schwangersch. nach 12. Wo.b.Ende Entb.Mon., 17% d. RB.",null,null,{"$f":"Eingabe!F38","v":""},{"$f":"IF(Eingabe!G38=0,\"\",Eingabe!G38)","v":""}]
[null,{"$f":"IF(Eingabe!B39=\"\",\"\",Eingabe!B39)","v":""},"Alleinerziehend mit 1 Kind unter 7 J. oder 2/3 unter 16 J.",null,null,"36% von RB",{"$f":"IF(Eingabe!G39=0,\"\",Eingabe!G39)","v":""}]
[null,{"$f":"IF(Eingabe!B40=\"\",\"\",Eingabe!B40)","v":""},{"$f":"Eingabe!C40","v":"Oder (bei Kindern anderen Alters)"},null,null,{"$f":"Eingabe!F40","v":"mx. 60% d. RB Stufe 1"},{"$f":"IF(Eingabe!G40=\"\",\"\",Eingabe!G40)","v":""}]
[null,null,{"$f":"Eingabe!C41","v":"je minderj.Kind 12% d. RL  f."},{"$f":"IF(Eingabe!D41=\"\",\"\",Eingabe!D41)","v":""},{"$f":"Eingabe!E41","v":"(Anz.) Kinder"}]
[null,{"$f":"IF(Eingabe!B42=\"\",\"\",Eingabe!B42)","v":""},{"$f":"Eingabe!C42","v":"Beh. Menschen ab 15 J. in Eingliederg./Ausbildg. 35% v. RB"},null,null,{"$f":"Eingabe!F42","v":""},{"$f":"IF(Eingabe!G42=0,\"\",Eingabe!G42)","v":""}]
[null,{"$f":"IF(Eingabe!B43=\"\",\"\",Eingabe!B43)","v":""},"Kostenaufwändige Ernährung für Kranke, Behinderte ...",null,null,"angemessen",{"$f":"IF(Eingabe!G43=0,\"\",Eingabe!G43)","v":""}]
[null,{"$f":"IF(Eingabe!B44=\"\",\"\",Eingabe!B44)","v":""},{"$f":"Eingabe!C44","v":"Anschaff./Ausleihe notw. Schulbücher/Arbeitshefte/Laptop"},null,null,"angemessen",{"$f":"IF(Eingabe!G44=0,\"\",Eingabe!G44)","v":""}]
[null,{"$f":"IF(Eingabe!B45=\"\",\"\",Eingabe!B45)","v":""},{"$f":"Eingabe!C45","v":"Unabweisbarer Sonderbedarf §27a Abs. 4 SGB XII, z.B. für Umgangsrecht, f. Putz-/Pflegehilfe, f. spez. Hygienebedarf, f. notw. Zusatzanschaff. bei Krankheit"},null,null,"angemessen",{"$f":"IF(Eingabe!G45=0,\"\",Eingabe!G45)","v":""}]
[null,{"$f":"IF(Eingabe!B46=\"\",\"\",Eingabe!B46)","v":""},{"$f":"Eingabe!C46","v":"(s.u.) Pauschale für dezentrale Warmwassererzeugung oder ein im Einzelfall abweichender Bedarf (gelbes Eingabefeld)"},null,null,{"$f":"IF(Eingabe!F46=0,\"\",Eingabe!F46)","v":""},{"$f":"IF(Eingabe!G46=0,\"\",Eingabe!G46)","v":""}]
[null,{"$f":"IF(Eingabe!B47=\"\",\"\",Eingabe!B47)","v":""},{"$f":"Eingabe!C47","v":"Mehraufwendungen bei gemeinsch. Mittagsverpflegung in einer Werkstatt für beh. Menschen od. tagesstruk. Angebot"},null,null,{"$f":"Eingabe!F47","v":"gem.§42b II SGB XII"},{"$f":"Eingabe!G47","v":0}]
[]
[{"$nulls":7},{"$f":"Eingabe!H49","v":"Summe der Mehrbedarfe (max. Summe RB, ggf. plus Warmwasser,Schulbedarf und Mittagsverpfl.):"},{"$f":"Eingabe!I49","v":0}]
[null,{"$f":"Eingabe!B51","v":"4. Bedarfe für Unterkunft und Heizung nach § 35 SGB XII"}]
[null,"Kosten der Unterkunft = Kaltmiete (bzw. Hypothekenzinsen) minus Wohngeld",{"$nulls":6},{"$f":"Eingabe!I52","v":0}]
[]
[null,"Nebenkosten incl. Heizung und Warmwasser (einschließlich absehbarer Nachforderungen)",{"$nulls":6},{"$f":"Eingabe!I55","v":0}]
[]
[null,{"$f":"Eingabe!B57","v":"Warmwasser nicht in Nebenkosten enthalten (ja/x eintragen)"},{"$nulls":3},{"$f":"IF(Eingabe!F57=\"\",\"\",Eingabe!F57)","v":""}]
[null,{"$f":"Eingabe!B58","v":"Wohngeld, soweit vorhanden:"},null,{"$f":"IF(Eingabe!D58=\"\",\"\",Eingabe!D58)","v":0},{"$nulls":3},{"$f":"Eingabe!G58","v":" minus Wohngeld:"},{"$f":"Eingabe!D58*-1","v":0}]
[null,{"$f":"Eingabe!B66","v":"5. Absetzbeträge bei Ausbildung/Freiwilligendienst oder Erwerbstätigkeit nach §82 Abs. 1, 3 SGB XII"}]
[null,"·Absetzbetrag 30% (max. die Hälfte von RB1)…",null,{"$f":"Eingabe!F69","v":0},{"$f":"Eingabe!G69","v":0},{"$f":"Eingabe!H69","v":0},{"$f":"Eingabe!I69","v":0}]
[null,{"$f":"Eingabe!B70","v":"·bei Ausbildung/Freiwilligendienst anrechnungsfrei bis 520 €…"},null,{"$f":"Eingabe!F70","v":0},{"$f":"Eingabe!G70","v":0},{"$f":"Eingabe!H70","v":0},{"$f":"Eingabe!I70","v":0}]
[]
[{"$nulls":6},"§82 Abs. 3 - Summe:",null,{"$f":"SUM(Eingabe!F71:'Eingabe'!I71)","v":0}]
[]
[null,{"$f":"Eingabe!B73","v":"6. Absetzbeträge vom Netto-Einkommen nach §82 Abs. 2 SGB XII i.V.m. VO zu §82"}]
[]
[null,{"$f":"Eingabe!B74","v":"·Beiträge zur Kranken-/Pflegeversicherung für nicht gesetzlich Pflichtversicherte"},{"$nulls":4},{"$f":"SUM(Eingabe!F74:'Eingabe'!I74)","v":0}]
[null,{"$f":"Eingabe!B75","v":"·Altersvorsorgebeiträge, soweit von der gesetzl. Rentenversichungspflicht befreit"},{"$nulls":4},{"$f":"SUM(Eingabe!F75:'Eingabe'!I75)","v":0}]
[null,"·Gesetzlich vorgeschriebene Versicherungsbeiträge (seit 1.7.2023 auch Kfz-Haftpflicht)",{"$nulls":4},{"$f":"SUM(Eingabe!F76:'Eingabe'!I76)","v":0}]
[null,{"$f":"Eingabe!B77","v":"·Beiträge für Haftpflicht-, Hausrat-, Unfall-, Sterbegeldversicherung u.a., soweit nach Grund und Höhe angemessen"},{"$nulls":4},{"$f":"SUM(Eingabe!F77:'Eingabe'!I77)","v":0}]
[null,{"$f":"Eingabe!B78","v":"·Mindestbeitrag für RIESTER- geförderte Altersvorsorge"},{"$nulls":4},{"$f":"SUM(Eingabe!F78:'Eingabe'!I78)","v":0}]
[null,{"$f":"Eingabe!B79","v":"·Arbeitsmittelpauschale (5,20€ je Erwerbstätigem im Haushalt)"},{"$nulls":4},{"$f":"SUM(Eingabe!F79:'Eingabe'!I79)","v":0}]
[null,{"$f":"Eingabe!B80","v":"·Fahrtkosten: i.d.R. Monatskarte ÖPNV, bei Notwendigkeit PKW 5,20€/Mon. je Entfernungskilometer, max. 40 Entfernungskilometer (max. 208€) monatlich."},{"$nulls":4},{"$f":"SUM(Eingabe!F80:'Eingabe'!I80)","v":0}]
[null,{"$f":"Eingabe!B81","v":"·Kosten für notwendige Kinderbetreuung"},{"$nulls":4},{"$f":"SUM(Eingabe!F81:'Eingabe'!I81)","v":0}]
[null,"·Beiträge für Berufsverbände",{"$nulls":4},{"$f":"SUM(Eingabe!F82:'Eingabe'!I82)","v":0}]
[null,"·Mehraufwand für doppelte Haushaltsführung",{"$nulls":4},{"$f":"SUM(Eingabe!F83:'Eingabe'!I83)","v":0}]
[null,{"$f":"Eingabe!B84","v":"·Sonstige, für die Einkommenserzielung notwendige Ausgaben:"},{"$nulls":4},{"$f":"SUM(Eingabe!F85:'Eingabe'!I85)","v":0}]
[null,{"$f":"IF(Eingabe!B85=\"\",\"\",Eingabe!B85)","v":"(z.B. Kosten für Berufskleidung, Werkzeug, Fortbildung, Umzug,Wegeunfall, Bewerbungen)"}]
[null,"(zum Nachweis der Summen Blatt \"Eingabe\" beifügen)",{"$nulls":4},"§82 Abs. 2 i.V.m. VO - Summe:",null,{"$f":"SUM(G67:G78)","v":0}]
[]
[null,{"$f":"Eingabe!B87","v":"7. Absetzbetrag bei Bezug von zusätzl. Altersvorsorge/Rente aus langj. Vers. gem. §§82 Abs.4+5, 82a SGB XII"},{"$nulls":6},{"$f":"SUM(Eingabe!F94:I94)","v":0}]
[]
[null,{"$f":"Eingabe!B96","v":"8. Unterhaltsleistung an gesetzl. U-Berechtigte außerh. des Schuldnerhaushalts"},{"$nulls":6},{"$f":"Eingabe!I96","v":0}]
[null,{"$f":"Eingabe!B97","v":"(in tatsächlich erbrachter Höhe entsprechend Unterhaltstitel)"}]
[]
[null,"Notwendiger Lebensunterhalt i.S.d. SGB XII",{"$nulls":4},"Gesamtbedarf:",null,{"$f":"SUM(I15:I86)","v":0}]
[]
[null,"Achtung: Sollte es für SGB XII-Leistungsberechtigte neue einmalige Zahlungen (vgl. § 144 SGB XII) geben, wäre ein entsprechender Betrag auch für den/die Leistungsmonat/e zu berücksichtigen! Hilfsweise kommt ein Antrag nach § 850f I Nr.2 ZPO in Betracht."]
[]
[]
[]
[]
[null,"Ort, Datum:",{"$f":"TODAY()","v":"2025-12-16"},null,"Stempel, Unterschrift:"]
[null,{"$f":"Eingabe!B99","v":"© Stefan Freeman, Malte Poppe und Prof. Dr. Dieter Zimmermann (EH Darmstadt) - Zur Nutzung im nichtgewerblichen Bereich freigegeben!"}]
[{"$nulls":8},{"$f":"Eingabe!I100","v":"2026_v20251216"}]

{"sheet":"Einkommensabzug","index":3,"n_rows":22,"n_cols":7,"rows_kept":22,"hidden":true}
[null,"Berechnung des Absetzungsbetrags bei Erwerbstätigkeit gem. §82 Abs. 3 SGB XII für lfd. Ziffer 1"]
[]
[]
[]
[null,null,"Bruttoeinkommen",{"$f":"IF(Eingabe!F63>100,Eingabe!F63,0)","v":0}]
[null,null,"Steuerfreie Eink,",{"$f":"IF(Eingabe!F64>100,Eingabe!F64,0)","v":0}]
[]
[null,null,"Freibetrag aus Bruttoeink.",{"$f":"IF(D5>0,IF((D5*0.3)>446/2,446/2,(D5*0.3)),0)","v":0},"30%, max. 50% RB-1"]
[null,null,"Freibetrag aus st.fr. Eink.",{"$f":"IF(D6>0,IF(D6<250,D6,250),0)","v":0},"Steuerfr.Eink. frei bis 250€)"]
[]
[null,null,"Gesamtabsetzung:",{"$f":"IF(D9>D8,D9,D8)","v":0}]
{"$rows_empty":10}
[null,{"$f":"Eingabe!B99","v":"© Stefan Freeman, Malte Poppe und Prof. Dr. Dieter Zimmermann (EH Darmstadt) - Zur Nutzung im nichtgewerblichen Bereich freigegeben!"},{"$nulls":4},{"$f":"Eingabe!I100","v":"2026_v20251216"}]

{"sheet":"Einkommensabzug Ziffer 2","index":4,"n_rows":21,"n_cols":7,"rows_kept":21,"hidden":true}
[null,"Berechnung des Absetzungsbetrags bei Erwerbstätigkeit gem. § 11b Abs. 3 SGB II für Lfd. Ziffer 2"]
[]
[null,"Einkommen über EUR 100 brutto"]
[]
[null,null,"Bruttoeinkommen (",{"$f":"IF(Eingabe!G63>100,Eingabe!G63,0)","v":0},") aufteilen, maximal EUR 1200/1500 werden berücksichtigt (s.u.)"]
[]
[null,null,"1. Teilbereich € 0 - €100:",{"$f":"IF(D5=0,0,IF(Eingabe!G63>=100,100,Eingabe!G63))","v":0}]
[]
[null,null,"2. Teilbereich € 100 - € 1000:",{"$f":"IF(D5=0,0,IF(Eingabe!G63>=1000,1000-100,Eingabe!G63-100))","v":0},null,"hieraus 20% =",{"$f":"IF(Eingabe!G63>100,D9*0.2,0)","v":0}]
["ohne minderjährige Kinder:"]
[null,null,"3. Teilber.  € 1000,01 - € 1200:",{"$f":"IF(AND(SUM(Eingabe!D15:'Eingabe'!D32)>0,MIN(Eingabe!D15:D22)<18),0,IF(Eingabe!G63<=1000,0,IF(Eingabe!G63>1000,IF(Eingabe!G63<1200.01,Eingabe!G63-1000,200))))","v":0},null,"hieraus 10% =",{"$f":"IF(Eingabe!G63>100,D11*0.1,0)","v":0}]
["mit minderjährigen Kindern:"]
[null,null,"3. Teilber. € 1000,01 - € 1500:",{"$f":"IF(AND(SUM(Eingabe!D15:'Eingabe'!D32)>0,MIN(Eingabe!D15:D22)<18),IF(Eingabe!G63<=1000,0,IF(Eingabe!G63>1000,IF(Eingabe!G63<1500.01,Eingabe!G63-1000,500))),0)","v":0},null,"hieraus 10% =",{"$f":"IF(Eingabe!G63>100,D13*0.1,0)","v":0}]
[]
[null,null,"Kontrollsumme:",{"$f":"D13+D11+D9+D7","v":0},null,"Gesamtabsetzung:",{"$f":"IF(G13+G11+G9=0,0,G13+G11+G9)","v":0}]
[]
[null,"(Die Kontrollsumme kann maximal EUR 1200/1500 ergeben;"]
[null,"ein evtl. über EUR 1200/1500 hinausgehendes Bruttoeinkommen"]
[null,"fließt nicht in die Berechnung ein)"]
[]
[null,{"$f":"Eingabe!B99","v":"© Stefan Freeman, Malte Poppe und Prof. Dr. Dieter Zimmermann (EH Darmstadt) - Zur Nutzung im nichtgewerblichen Bereich freigegeben!"},{"$nulls":4},{"$f":"Eingabe!I100","v":"2026_v20251216"}]

{"sheet":"Einkommensabzug Ziffer 3","index":5,"n_rows":21,"n_cols":7,"rows_kept":21,"hidden":true}
[null,"Berechnung des Absetzungsbetrags bei Erwerbstätigkeit gem. § 11b Abs. 3 SGB II für Lfd. Ziffer 3"]
[]
[null,"Einkommen über EUR 100 brutto"]
[]
[null,null,"Bruttoeinkommen (",{"$f":"IF(Eingabe!H63>100,Eingabe!H63,0)","v":0},") aufteilen, maximal EUR 1200/1500 werden berücksichtigt (s.u.)"]
[]
[null,null,"1. Teilbereich € 0 - €100:",{"$f":"IF(D5=0,0,IF(Eingabe!H63>=100,100,Eingabe!H63))","v":0}]
[]
[null,null,"2. Teilbereich € 100 - € 1000:",{"$f":"IF(D5=0,0,IF(Eingabe!H63>=1000,1000-100,Eingabe!H63-100))","v":0},null,"hieraus 20% =",{"$f":"IF(Eingabe!H63>100,D9*0.2,0)","v":0}]
["ohne minderjährige Kinder:"]
[null,null,"3. Teilber.  € 1000,01 - € 1200:",{"$f":"IF(AND(SUM(Eingabe!D15:'Eingabe'!D32)>0,MIN(Eingabe!D15:D22)<18),0,IF(Eingabe!H63<=1000,0,IF(Eingabe!H63>1000,IF(Eingabe!H63<1200.01,Eingabe!H63-1000,200))))","v":0},null,"hieraus 10% =",{"$f":"IF(Eingabe!H63>100,D11*0.1,0)","v":0}]
["mit minderjährigen Kindern:"]
[null,null,"3. Teilber. € 1000,01 - € 1500:",{"$f":"IF(AND(SUM(Eingabe!D15:'Eingabe'!D32)>0,MIN(Eingabe!D15:D22)<18),IF(Eingabe!H63<=1000,0,IF(Eingabe!H63>1000,IF(Eingabe!H63<1500.01,Eingabe!H63-1000,500))),0)","v":0},null,"hieraus 10% =",{"$f":"IF(Eingabe!H63>100,D13*0.1,0)","v":0}]
[]
[null,null,"Kontrollsumme:",{"$f":"D13+D11+D9+D7","v":0},null,"Gesamtabsetzung:",{"$f":"IF(G13+G11+G9=0,0,G13+G11+G9)","v":0}]
[]
[null,"(Die Kontrollsumme kann maximal EUR 1200/1500 ergeben;"]
[null,"ein evtl. über EUR 1200/1500 hinausgehendes Bruttoeinkommen"]
[null,"fließt nicht in die Berechnung ein)"]
[]
[null,{"$f":"Eingabe!B99","v":"© Stefan Freeman, Malte Poppe und Prof. Dr. Dieter Zimmermann (EH Darmstadt) - Zur Nutzung im nichtgewerblichen Bereich freigegeben!"},{"$nulls":4},{"$f":"Eingabe!I100","v":"2026_v20251216"}]

{"sheet":"Einkommensabzug Ziffer 4","index":6,"n_rows":21,"n_cols":7,"rows_kept":21,"hidden":true}
[null,"Berechnung des Absetzungsbetrags bei Erwerbstätigkeit gem. § 11b Abs. 3 SGB II für Lfd. Ziffer 4"]
[]
[null,"Einkommen über EUR 100 brutto"]
[]
[null,null,"Bruttoeinkommen (",{"$f":"IF(Eingabe!I63>100,Eingabe!I63,0)","v":0},") aufteilen, maximal EUR 1200/1500 werden berücksichtigt (s.u.)"]
[]
[null,null,"1. Teilbereich € 0 - €100:",{"$f":"IF(D5=0,0,IF(Eingabe!I63>=100,100,Eingabe!I63))","v":0}]
[]
[null,null,"2. Teilbereich € 100 - € 1000:",{"$f":"IF(D5=0,0,IF(Eingabe!I63>=1000,1000-100,Eingabe!I63-100))","v":0},null,"hieraus 20% =",{"$f":"IF(Eingabe!I63>100,D9*0.2,0)","v":0}]
["ohne minderjährige Kinder:"]
[null,null,"3. Teilber.  € 1000,01 - € 1200:",{"$f":"IF(AND(SUM(Eingabe!D15:'Eingabe'!D32)>0,MIN(Eingabe!D15:D22)<18),0,IF(Eingabe!I63<=1000,0,IF(Eingabe!I63>1000,IF(Eingabe!I63<1200.01,Eingabe!I63-1000,200))))","v":0},null,"hieraus 10% =",{"$f":"IF(Eingabe!I63>100,D11*0.1,0)","v":0}]
["mit minderjährigen Kindern:"]
[null,null,"3. Teilber. € 1000,01 - € 1500:",{"$f":"IF(AND(SUM(Eingabe!D15:'Eingabe'!D32)>0,MIN(Eingabe!D15:D22)<18),IF(Eingabe!I63<=1000,0,IF(Eingabe!I63>800,IF(Eingabe!I63<1500.01,Eingabe!I63-1000,500))),0)","v":0},null,"hieraus 10% =",{"$f":"IF(Eingabe!I63>100,D13*0.1,0)","v":0}]
[]
[null,null,"Kontrollsumme:",{"$f":"D13+D11+D9+D7","v":0},null,"Gesamtabsetzung:",{"$f":"IF(G13+G11+G9=0,0,G13+G11+G9)","v":0}]
[]
[null,"(Die Kontrollsumme kann maximal EUR 1200/1500 ergeben;"]
[null,"ein evtl. über EUR 1200/1500 hinausgehendes Bruttoeinkommen"]
[null,"fließt nicht in die Berechnung ein)"]
[]
[null,{"$f":"Eingabe!B99","v":"© Stefan Freeman, Malte Poppe und Prof. Dr. Dieter Zimmermann (EH Darmstadt) - Zur Nutzung im nichtgewerblichen Bereich freigegeben!"},{"$nulls":4},{"$f":"Eingabe!I100","v":"2026_v20251216"}]

{"sheet":"Hilfstabelle","index":7,"n_rows":17,"n_cols":8,"rows_kept":17,"hidden":true,"merged":[[3,0,3,3],[4,0,4,5],[5,0,5,7],[6,0,6,3],[7,0,7,3],[8,0,8,3],[9,0,9,3],[10,0,10,3],[11,0,11,3],[12,0,12,3],[13,0,13,3],[14,0,14,3],[15,0,15,3],[16,1,16,3]]}
["7. Einkommensabzüge bei jedem nicht selbstständig Tätigen gem. § 82 Abs. 2 SGB XII i.V.m. VO zu §82"]
[]
[]
["·Pauschale gem. §11 Abs. 3 SGB II",{"$nulls":3},{"$f":"Eingabe!F69","v":0},{"$f":"IF(SUM(Eingabe!G74:G85)>100,0,Eingabe!G69)","v":0},{"$f":"IF(SUM(Eingabe!H74:H85)>100,0,Eingabe!H69)","v":0},{"$f":"IF(SUM(Eingabe!I74:I85)>100,0,Eingabe!I69)","v":0}]
[]
[]
["·Beiträge zur Kranken-/Pflegeversicherung für nicht gesetzlich Pflichtversicherte",{"$nulls":3},{"$f":"IF($E$4>0,0,Eingabe!F74)","v":0},{"$f":"IF($E$4>0,0,Eingabe!G74)","v":0},{"$f":"IF($E$4>0,0,Eingabe!H74)","v":0},{"$f":"IF($E$4>0,0,Eingabe!I74)","v":0}]
["·Altersvorsorgebeiträge, soweit von der gesetzl. Rentenversichungspflicht befreit",{"$nulls":3},{"$f":"IF(E$4>0,0,Eingabe!F75)","v":0},{"$f":"IF(F$4>0,0,Eingabe!G75)","v":0},{"$f":"IF(G$4>0,0,Eingabe!H75)","v":0},{"$f":"IF(H$4>0,0,Eingabe!I75)","v":0}]
["·Gesetzlich vorgeschriebene Versicherungsbeiträge (z.B. Kfz-Haftpflicht)",{"$nulls":3},{"$f":"IF(E$4>0,0,Eingabe!F76)","v":0},{"$f":"IF(F$4>0,0,Eingabe!G76)","v":0},{"$f":"IF(G$4>0,0,Eingabe!H76)","v":0},{"$f":"IF(H$4>0,0,Eingabe!I76)","v":0}]
["·Versich.pauschale 30 EUR/Erwerbstätigem (Privathaftpfl.-/Hausrat-/Unfall-/...) ",{"$nulls":3},{"$f":"IF(E$4>0,0,Eingabe!F77)","v":0},{"$f":"IF(F$4>0,0,Eingabe!G77)","v":0},{"$f":"IF(G$4>0,0,Eingabe!H77)","v":0},{"$f":"IF(H$4>0,0,Eingabe!I77)","v":0}]
["·Mindesteigenbeitrag für RIESTER-geförderte Altersvorsorge",{"$nulls":3},{"$f":"IF(E$4>0,0,Eingabe!F78)","v":0},{"$f":"IF(F$4>0,0,Eingabe!G78)","v":0},{"$f":"IF(G$4>0,0,Eingabe!H78)","v":0},{"$f":"IF(H$4>0,0,Eingabe!I78)","v":0}]
["·Kosten für Berufskleidung, Werkzeug, Fachliteratur usw.(Werbungskosten-Pauschbetrag entfällt 1.8.16)",{"$nulls":3},{"$f":"IF(E$4>0,0,Eingabe!F79)","v":0},{"$f":"IF(F$4>0,0,Eingabe!G79)","v":0},{"$f":"IF(G$4>0,0,Eingabe!H79)","v":0},{"$f":"IF(H$4>0,0,Eingabe!I79)","v":0}]
["·Fahrtkosten: pauschal 0,20 EUR je Entfernungskilometer (auf Nachweis mehr) - eigentlich entstehen Kosten von 0,30 € je Fahrtkilometer",{"$nulls":3},{"$f":"IF(E$4>0,0,Eingabe!F80)","v":0},{"$f":"IF(F$4>0,0,Eingabe!G80)","v":0},{"$f":"IF(G$4>0,0,Eingabe!H80)","v":0},{"$f":"IF(H$4>0,0,Eingabe!I80)","v":0}]
["·Kosten für notwendige Kinderbetreuung",{"$nulls":3},{"$f":"IF(E$4>100,0,Eingabe!F81)","v":0},{"$f":"IF(F$4>100,0,Eingabe!G81)","v":0},{"$f":"IF(G$4>100,0,Eingabe!H81)","v":0},{"$f":"IF(H$4>100,0,Eingabe!I81)","v":0}]
["·Beiträge für Berufsverbände",{"$nulls":3},{"$f":"IF(E$4>0,0,Eingabe!F82)","v":0},{"$f":"IF(F$4>0,0,Eingabe!G82)","v":0},{"$f":"IF(G$4>0,0,Eingabe!H82)","v":0},{"$f":"IF(H$4>0,0,Eingabe!I82)","v":0}]
["·Mehraufwand für doppelte Haushaltsführung",{"$nulls":3},{"$f":"IF(E$4>0,0,Eingabe!F83)","v":0},{"$f":"IF(F$4>0,0,Eingabe!G83)","v":0},{"$f":"IF(G$4>0,0,Eingabe!H83)","v":0},{"$f":"IF(H$4>0,0,Eingabe!I83)","v":0}]
["·sonstiges: ...........",{"$f":"IF(Eingabe!B85=\"\",\"\",Eingabe!B85)","v":"(z.B. Kosten für Berufskleidung, Werkzeug, Fortbildung, Umzug,Wegeunfall, Bewerbungen)"},null,null,{"$f":"IF(E$4>0,0,Eingabe!F85)","v":0},{"$f":"IF(F$4>0,0,Eingabe!G85)","v":0},{"$f":"IF(G$4>0,0,Eingabe!H85)","v":0},{"$f":"IF(H$4>0,0,Eingabe!I85)","v":0}]